[Event "Titled Tuesday Blitz March 08 Late 2022"]
[White "Dubov, Daniil"]
[Black "Praggnanandhaa R"]
[WhiteFideId "24126055"]
[BlackFideId "25059530"]
[WhiteElo "2791"]
[BlackElo "2599"]
[Result "0-1"]
[Round "07"]
[TimeControl "180+1"]
[Date "2022.03.08"]
[WhiteClock "0:00:23"]
[BlackClock "0:00:20"]

1. d4 {[%clk 0:03:00]}  Nf6 {[%clk 0:02:58]} 2. Nf3 {[%clk 0:03:01]}  e6 {[%clk 0:02:56]} 3. c4 {[%clk 0:03:01]}  d5 {[%clk 0:02:53]} 4. g3 {[%clk 0:03:02]}  dxc4 {[%clk 0:02:49]} 5. Bg2 {[%clk 0:03:01]}  c5 {[%clk 0:02:49]} 6. O-O {[%clk 0:03:00]}  Nc6 {[%clk 0:02:49]} 7. dxc5 {[%clk 0:03:00]}  Qxd1 {[%clk 0:02:49]} 8. Rxd1 {[%clk 0:03:00]}  Bxc5 {[%clk 0:02:50]} 9. Nc3 {[%clk 0:03:01]}  Bd7 {[%clk 0:02:42]} 10. Nd2 {[%clk 0:02:56]}  Na5 {[%clk 0:02:32]} 11. Nde4 {[%clk 0:02:56]}  Nxe4 {[%clk 0:02:31]} 12. Nxe4 {[%clk 0:02:57]}  Bb4 {[%clk 0:02:32]} 13. Bf4 {[%clk 0:02:45]}  Bc6 {[%clk 0:02:26]} 14. Rac1 {[%clk 0:02:39]}  O-O {[%clk 0:02:16]} 15. Nd6 {[%clk 0:02:24]}  Bxg2 {[%clk 0:02:01]} 16. Kxg2 {[%clk 0:02:24]}  Rfd8 {[%clk 0:01:57]} 17. Ne4 {[%clk 0:02:04]}  Rd5 {[%clk 0:01:21]} 18. Rf1 {[%clk 0:01:06]}  b6 {[%clk 0:01:12]} 19. Rc2 {[%clk 0:01:04]}  Rad8 {[%clk 0:01:09]} 20. Rfc1 {[%clk 0:01:00]}  f5 {[%clk 0:00:42]} 21. Ng5 {[%clk 0:00:54]}  e5 {[%clk 0:00:41]} 22. Be3 {[%clk 0:00:54]}  h6 {[%clk 0:00:41]} 23. Nf3 {[%clk 0:00:37]}  e4 {[%clk 0:00:33]} 24. Ng1 {[%clk 0:00:36]}  Bd2 {[%clk 0:00:30]} 25. Bxd2 {[%clk 0:00:35]}  Rxd2 {[%clk 0:00:31]} 26. h4 {[%clk 0:00:32]}  b5 {[%clk 0:00:28]} 27. Nh3 {[%clk 0:00:31]}  Nc6 {[%clk 0:00:24]} 28. Nf4 {[%clk 0:00:28]}  Nb4 {[%clk 0:00:20]} 29. Rxd2 {[%clk 0:00:28]}  Rxd2 {[%clk 0:00:21]} 30. a4 {[%clk 0:00:28]}  a6 {[%clk 0:00:19]} 31. axb5 {[%clk 0:00:28]}  axb5 {[%clk 0:00:20]} 32. Ra1 {[%clk 0:00:27]}  g5 {[%clk 0:00:20]} 33. Ra7 {[%clk 0:00:23]} 0-1


[Site "https://www.chess.com"]

[Event "Titled Tuesday Blitz March 08 Late 2022"]
[White "Elissalt Cardenas, Hector"]
[Black "Cupid, Kevin"]
[WhiteFideId "3500632"]
[BlackFideId "7700512"]
[WhiteElo "2159"]
[BlackElo "2096"]
[Result "1-0"]
[Round "07"]
[TimeControl "180+1"]
[Date "2022.03.09"]
[WhiteClock "0:00:12"]
[BlackClock "0:00:07"]

1. d4 {[%clk 0:02:22]}  Nf6 {[%clk 0:02:52]} 2. c4 {[%clk 0:02:20]}  c5 {[%clk 0:02:52]} 3. d5 {[%clk 0:02:17]}  b5 {[%clk 0:02:52]} 4. cxb5 {[%clk 0:02:15]}  d6 {[%clk 0:02:50]} 5. Nc3 {[%clk 0:02:06]}  g6 {[%clk 0:02:47]} 6. e4 {[%clk 0:02:04]}  Bg7 {[%clk 0:02:46]} 7. h3 {[%clk 0:02:04]}  O-O {[%clk 0:02:46]} 8. Nf3 {[%clk 0:02:02]}  a6 {[%clk 0:02:46]} 9. a4 {[%clk 0:02:00]}  Nbd7 {[%clk 0:02:45]} 10. Bg5 {[%clk 0:01:57]}  Qa5 {[%clk 0:02:41]} 11. Bd2 {[%clk 0:01:56]}  Ne8 {[%clk 0:02:30]} 12. Qc2 {[%clk 0:01:52]}  axb5 {[%clk 0:02:24]} 13. Nxb5 {[%clk 0:01:47]}  Qd8 {[%clk 0:02:20]} 14. Bc3 {[%clk 0:01:47]}  Ba6 {[%clk 0:02:15]} 15. Bxg7 {[%clk 0:01:46]}  Nxg7 {[%clk 0:02:14]} 16. Be2 {[%clk 0:01:35]}  Qa5+ {[%clk 0:02:14]} 17. Nd2 {[%clk 0:01:13]}  f5 {[%clk 0:02:03]} 18. O-O {[%clk 0:01:09]}  fxe4 {[%clk 0:02:01]} 19. Nxe4 {[%clk 0:01:07]}  Nf5 {[%clk 0:01:59]} 20. Nec3 {[%clk 0:00:58]}  Ne5 {[%clk 0:01:54]} 21. b3 {[%clk 0:00:53]}  Qb4 {[%clk 0:01:51]} 22. Rae1 {[%clk 0:00:34]}  Nd4 {[%clk 0:01:11]} 23. Nxd4 {[%clk 0:00:30]}  cxd4 {[%clk 0:01:12]} 24. Nb5 {[%clk 0:00:29]}  Rac8 {[%clk 0:00:53]} 25. Qe4 {[%clk 0:00:29]}  Bxb5 {[%clk 0:00:44]} 26. Bxb5 {[%clk 0:00:27]}  Qxb3 {[%clk 0:00:29]} 27. f4 {[%clk 0:00:26]}  Nf7 {[%clk 0:00:27]} 28. Rf3 {[%clk 0:00:22]}  Qb4 {[%clk 0:00:24]} 29. Rd3 {[%clk 0:00:20]}  Rc2 {[%clk 0:00:15]} 30. Rxd4 {[%clk 0:00:19]}  Qb2 {[%clk 0:00:16]} 31. Bd7 {[%clk 0:00:18]}  Rxg2+ {[%clk 0:00:14]} 32. Qxg2 {[%clk 0:00:17]}  Qxd4+ {[%clk 0:00:15]} 33. Kh1 {[%clk 0:00:16]}  Qxf4 {[%clk 0:00:15]} 34. Be6 {[%clk 0:00:15]}  Kg7 {[%clk 0:00:15]} 35. Qb2+ {[%clk 0:00:15]}  Qf6 {[%clk 0:00:13]} 36. Qxf6+ {[%clk 0:00:15]}  Kxf6 {[%clk 0:00:14]} 37. a5 {[%clk 0:00:14]}  Nd8 {[%clk 0:00:06]} 38. Rf1+ {[%clk 0:00:13]}  Kg7 {[%clk 0:00:06]} 39. Rxf8 {[%clk 0:00:13]}  Kxf8 {[%clk 0:00:07]} 40. a6 {[%clk 0:00:13]}  Ke8 {[%clk 0:00:07]} 41. a7 {[%clk 0:00:12]} 1-0


[Site "https://www.chess.com"]

[Event "Titled Tuesday Blitz March 08 Late 2022"]
[White "Erdogdu, Mert"]
[Black "Fiorito, Fabian"]
[WhiteFideId "6301495"]
[BlackFideId "100200"]
[WhiteElo "2485"]
[BlackElo "2395"]
[Result "0-1"]
[Round "07"]
[TimeControl "180+1"]
[Date "2022.03.08"]
[WhiteClock "0:00:01"]
[BlackClock "0:00:07"]

1. e4 {[%clk 0:03:00]}  c6 {[%clk 0:02:59]} 2. d4 {[%clk 0:02:59]}  d5 {[%clk 0:03:00]} 3. e5 {[%clk 0:03:00]}  Bf5 {[%clk 0:03:00]} 4. Nd2 {[%clk 0:02:59]}  e6 {[%clk 0:02:56]} 5. Nb3 {[%clk 0:03:00]}  Nd7 {[%clk 0:02:54]} 6. Nf3 {[%clk 0:03:00]}  a6 {[%clk 0:02:50]} 7. Be2 {[%clk 0:02:59]}  h6 {[%clk 0:02:49]} 8. Be3 {[%clk 0:02:58]}  Rc8 {[%clk 0:02:50]} 9. O-O {[%clk 0:02:54]}  Ne7 {[%clk 0:02:45]} 10. c3 {[%clk 0:02:49]}  Bh7 {[%clk 0:02:43]} 11. Ne1 {[%clk 0:02:43]}  Nf5 {[%clk 0:02:43]} 12. g4 {[%clk 0:02:09]}  Nxe3 {[%clk 0:02:40]} 13. fxe3 {[%clk 0:02:09]}  Qg5 {[%clk 0:02:33]} 14. Ng2 {[%clk 0:02:07]}  Be4 {[%clk 0:02:23]} 15. h4 {[%clk 0:02:05]}  Qd8 {[%clk 0:02:22]} 16. Bf3 {[%clk 0:01:56]}  Bg6 {[%clk 0:02:16]} 17. Nd2 {[%clk 0:01:47]}  Be7 {[%clk 0:02:15]} 18. Qe1 {[%clk 0:01:45]}  c5 {[%clk 0:02:13]} 19. Qg3 {[%clk 0:01:44]}  Qb6 {[%clk 0:02:11]} 20. Nf4 {[%clk 0:01:36]}  Bh7 {[%clk 0:02:03]} 21. b3 {[%clk 0:01:20]}  cxd4 {[%clk 0:02:03]} 22. cxd4 {[%clk 0:01:20]}  Rc3 {[%clk 0:02:02]} 23. Rae1 {[%clk 0:01:13]}  Qa5 {[%clk 0:01:54]} 24. Re2 {[%clk 0:01:00]}  Rc2 {[%clk 0:01:50]} 25. Rff2 {[%clk 0:00:45]}  Qxa2 {[%clk 0:01:48]} 26. g5 {[%clk 0:00:44]}  hxg5 {[%clk 0:01:35]} 27. hxg5 {[%clk 0:00:45]}  Bf5 {[%clk 0:01:36]} 28. Bg4 {[%clk 0:00:36]}  Bxg4 {[%clk 0:00:58]} 29. Qxg4 {[%clk 0:00:36]}  g6 {[%clk 0:00:57]} 30. e4 {[%clk 0:00:26]}  dxe4 {[%clk 0:00:53]} 31. Nxe4 {[%clk 0:00:25]}  Qb1+ {[%clk 0:00:51]} 32. Rf1 {[%clk 0:00:24]}  Rc1 {[%clk 0:00:48]} 33. Nd2 {[%clk 0:00:08]}  Rxf1+ {[%clk 0:00:47]} 34. Nxf1 {[%clk 0:00:09]}  Qxb3 {[%clk 0:00:47]} 35. d5 {[%clk 0:00:07]}  Bc5+ {[%clk 0:00:47]} 36. Kg2 {[%clk 0:00:06]}  Nf8 {[%clk 0:00:37]} 37. dxe6 {[%clk 0:00:06]}  Nxe6 {[%clk 0:00:38]} 38. Ng3 {[%clk 0:00:05]}  Qc4 {[%clk 0:00:21]} 39. Nxe6 {[%clk 0:00:02]}  Qxg4 {[%clk 0:00:21]} 40. Nxc5 {[%clk 0:00:02]}  Rh3 {[%clk 0:00:20]} 41. Ne4 {[%clk 0:00:02]}  Qh4 {[%clk 0:00:17]} 42. Re3 {[%clk 0:00:02]}  Rh2+ {[%clk 0:00:17]} 43. Kf3 {[%clk 0:00:03]}  Qh3 {[%clk 0:00:15]} 44. Nf6+ {[%clk 0:00:02]}  Kf8 {[%clk 0:00:15]} 45. Rd3 {[%clk 0:00:02]}  Qg2+ {[%clk 0:00:15]} 46. Kg4 {[%clk 0:00:02]}  Qh3+ {[%clk 0:00:13]} 47. Kf3 {[%clk 0:00:02]}  Qg2+ {[%clk 0:00:12]} 48. Kg4 {[%clk 0:00:03]}  Kg7 {[%clk 0:00:09]} 49. Rd8 {[%clk 0:00:02]}  Rh8 {[%clk 0:00:09]} 50. Rd7 {[%clk 0:00:01]}  Qc6 {[%clk 0:00:08]} 51. e6 {[%clk 0:00:01]}  Qc4+ {[%clk 0:00:07]} 0-1


[Site "https://www.chess.com"]

[Event "Titled Tuesday Blitz March 08 Late 2022"]
[White "Fishbein, Alexander"]
[Black "Jacobson, Brandon"]
[WhiteFideId "2000377"]
[BlackFideId "30901561"]
[WhiteElo "2442"]
[BlackElo "2362"]
[Result "1-0"]
[Round "07"]
[TimeControl "180+1"]
[Date "2022.03.08"]
[WhiteClock "0:01:59"]
[BlackClock "0:01:17"]

1. Nf3 {[%clk 0:02:59]}  g6 {[%clk 0:03:00]} 2. e4 {[%clk 0:02:58]}  Bg7 {[%clk 0:03:01]} 3. d4 {[%clk 0:02:58]}  d6 {[%clk 0:03:02]} 4. c3 {[%clk 0:02:57]}  Nf6 {[%clk 0:03:02]} 5. Bd3 {[%clk 0:02:57]}  O-O {[%clk 0:03:03]} 6. O-O {[%clk 0:02:57]}  Nc6 {[%clk 0:03:03]} 7. Na3 {[%clk 0:02:56]}  e5 {[%clk 0:03:02]} 8. Nc2 {[%clk 0:02:56]}  Re8 {[%clk 0:03:00]} 9. Re1 {[%clk 0:02:54]}  d5 {[%clk 0:02:29]} 10. Bg5 {[%clk 0:02:53]}  Bg4 {[%clk 0:02:12]} 11. h3 {[%clk 0:02:48]}  Bxf3 {[%clk 0:02:05]} 12. Qxf3 {[%clk 0:02:46]}  exd4 {[%clk 0:02:06]} 13. cxd4 {[%clk 0:02:25]}  dxe4 {[%clk 0:01:57]} 14. Bxe4 {[%clk 0:02:24]}  Nxd4 {[%clk 0:01:57]} 15. Nxd4 {[%clk 0:02:20]}  Qxd4 {[%clk 0:01:58]} 16. Bxb7 {[%clk 0:02:18]}  Rab8 {[%clk 0:01:57]} 17. Rxe8+ {[%clk 0:02:12]}  Nxe8 {[%clk 0:01:56]} 18. Rd1 {[%clk 0:02:10]}  Qxb2 {[%clk 0:01:54]} 19. Bd5 {[%clk 0:02:09]}  Nd6 {[%clk 0:01:53]} 20. Bb3 {[%clk 0:02:08]}  Re8 {[%clk 0:01:42]} 21. Rxd6 {[%clk 0:02:02]}  Re1+ {[%clk 0:01:20]} 22. Kh2 {[%clk 0:02:02]}  Be5+ {[%clk 0:01:21]} 23. g3 {[%clk 0:02:01]}  Bxg3+ {[%clk 0:01:17]} 24. Kxg3 {[%clk 0:01:59]} 1-0


[Site "https://www.chess.com"]

[Event "Titled Tuesday Blitz March 08 Late 2022"]
[White "Galego, Luis"]
[Black "Golubev, Mikhail"]
[WhiteFideId "1900072"]
[BlackFideId "14100983"]
[WhiteElo "2516"]
[BlackElo "2374"]
[Result "0-1"]
[Round "07"]
[TimeControl "180+1"]
[Date "2022.03.09"]
[WhiteClock "0:01:14"]
[BlackClock "0:00:28"]

1. e4 {[%clk 0:02:59]}  c5 {[%clk 0:02:59]} 2. Nf3 {[%clk 0:02:59]}  d6 {[%clk 0:02:59]} 3. d4 {[%clk 0:02:59]}  Nf6 {[%clk 0:02:59]} 4. Bb5+ {[%clk 0:02:56]}  Nbd7 {[%clk 0:02:56]} 5. e5 {[%clk 0:02:48]}  Qa5+ {[%clk 0:02:21]} 6. Nc3 {[%clk 0:02:47]}  Nd5 {[%clk 0:02:18]} 7. Bd2 {[%clk 0:02:40]}  Nxc3 {[%clk 0:02:08]} 8. Bxd7+ {[%clk 0:02:37]}  Bxd7 {[%clk 0:02:09]} 9. Bxc3 {[%clk 0:02:37]}  Qa6 {[%clk 0:02:08]} 10. d5 {[%clk 0:02:25]}  O-O-O {[%clk 0:01:21]} 11. Ng5 {[%clk 0:02:16]}  dxe5 {[%clk 0:01:21]} 12. Nxf7 {[%clk 0:02:11]}  Qg6 {[%clk 0:01:18]} 13. Nxh8 {[%clk 0:02:09]}  Qxg2 {[%clk 0:01:17]} 14. Kd2 {[%clk 0:01:44]}  Qg5+ {[%clk 0:00:52]} 15. Ke1 {[%clk 0:01:38]}  Qg2 {[%clk 0:00:52]} 16. Rf1 {[%clk 0:01:36]}  Bb5 {[%clk 0:00:48]} 17. Kd2 {[%clk 0:01:36]}  Rxd5+ {[%clk 0:00:43]} 18. Kc1 {[%clk 0:01:31]}  Rxd1+ {[%clk 0:00:42]} 19. Rxd1 {[%clk 0:01:32]}  Qxf2 {[%clk 0:00:40]} 20. a4 {[%clk 0:01:30]}  Be2 {[%clk 0:00:38]} 21. Re1 {[%clk 0:01:28]}  g6 {[%clk 0:00:35]} 22. b3 {[%clk 0:01:27]}  Bh6+ {[%clk 0:00:35]} 23. Kb2 {[%clk 0:01:24]}  Bd3 {[%clk 0:00:33]} 24. Bxe5 {[%clk 0:01:14]}  Qxc2+ {[%clk 0:00:30]} 25. Ka3 {[%clk 0:01:14]}  Bd2 {[%clk 0:00:28]} 0-1


[Site "https://www.chess.com"]

[Event "Titled Tuesday Blitz March 08 Late 2022"]
[White "Goltseva, Ekaterina"]
[Black "Nakamura, Hikaru"]
[WhiteFideId "24173770"]
[BlackFideId "2016192"]
[WhiteElo "2140"]
[BlackElo "2850"]
[Result "0-1"]
[Round "07"]
[TimeControl "180+1"]
[Date "2022.03.08"]
[WhiteClock "0:00:06"]
[BlackClock "0:02:06"]

1. d4 {[%clk 0:03:00]}  g6 {[%clk 0:02:58]} 2. c4 {[%clk 0:03:01]}  Bg7 {[%clk 0:02:59]} 3. e4 {[%clk 0:03:01]}  d6 {[%clk 0:02:57]} 4. Nc3 {[%clk 0:03:02]}  a6 {[%clk 0:02:54]} 5. Nf3 {[%clk 0:02:55]}  Bg4 {[%clk 0:02:54]} 6. Be2 {[%clk 0:02:53]}  Nd7 {[%clk 0:02:54]} 7. Be3 {[%clk 0:02:52]}  c5 {[%clk 0:02:54]} 8. d5 {[%clk 0:02:40]}  Bxf3 {[%clk 0:02:52]} 9. gxf3 {[%clk 0:02:33]}  Qa5 {[%clk 0:02:48]} 10. Bd2 {[%clk 0:02:32]}  Ngf6 {[%clk 0:02:46]} 11. f4 {[%clk 0:02:29]}  O-O {[%clk 0:02:45]} 12. h4 {[%clk 0:02:16]}  h5 {[%clk 0:02:44]} 13. Rg1 {[%clk 0:02:16]}  b5 {[%clk 0:02:40]} 14. cxb5 {[%clk 0:02:12]}  axb5 {[%clk 0:02:40]} 15. Nxb5 {[%clk 0:02:12]}  Qb6 {[%clk 0:02:38]} 16. Qc2 {[%clk 0:02:09]}  c4 {[%clk 0:02:35]} 17. Nc3 {[%clk 0:01:53]}  Rab8 {[%clk 0:02:28]} 18. Rb1 {[%clk 0:01:46]}  Nc5 {[%clk 0:02:22]} 19. e5 {[%clk 0:01:39]}  Ng4 {[%clk 0:02:20]} 20. Bxg4 {[%clk 0:01:18]}  Nd3+ {[%clk 0:02:20]} 21. Kd1 {[%clk 0:01:16]}  Qxf2 {[%clk 0:02:16]} 22. Ne2 {[%clk 0:00:53]}  hxg4 {[%clk 0:02:14]} 23. Be1 {[%clk 0:00:43]}  Qf3 {[%clk 0:02:12]} 24. Rg3 {[%clk 0:00:38]}  Qxd5 {[%clk 0:02:12]} 25. Qd2 {[%clk 0:00:24]}  dxe5 {[%clk 0:02:08]} 26. Rxg4 {[%clk 0:00:18]}  Rfd8 {[%clk 0:02:08]} 27. fxe5 {[%clk 0:00:05]}  Nf2+ {[%clk 0:02:07]} 28. Kc2 {[%clk 0:00:05]}  Qxd2+ {[%clk 0:02:06]} 29. Bxd2 {[%clk 0:00:06]}  Nxg4 {[%clk 0:02:06]} 0-1


[Site "https://www.chess.com"]

[Event "Titled Tuesday Blitz March 08 Late 2022"]
[White "Indjic, Aleksandar"]
[Black "Jobava, Baadur"]
[WhiteFideId "911925"]
[BlackFideId "13601520"]
[WhiteElo "2616"]
[BlackElo "2617"]
[Result "1-0"]
[Round "07"]
[TimeControl "180+1"]
[Date "2022.03.08"]
[WhiteClock "0:00:04"]
[BlackClock "0:00:02"]

1. d4 {[%clk 0:03:00]}  d5 {[%clk 0:02:57]} 2. c4 {[%clk 0:03:00]}  dxc4 {[%clk 0:02:58]} 3. e3 {[%clk 0:02:59]}  Nf6 {[%clk 0:02:59]} 4. Bxc4 {[%clk 0:02:57]}  e6 {[%clk 0:02:59]} 5. Nf3 {[%clk 0:02:57]}  b6 {[%clk 0:02:58]} 6. Nc3 {[%clk 0:02:56]}  Bb7 {[%clk 0:02:59]} 7. O-O {[%clk 0:02:55]}  Nbd7 {[%clk 0:02:59]} 8. Qe2 {[%clk 0:02:54]}  Bb4 {[%clk 0:02:57]} 9. a3 {[%clk 0:02:43]}  Bxc3 {[%clk 0:02:57]} 10. bxc3 {[%clk 0:02:44]}  c5 {[%clk 0:02:56]} 11. a4 {[%clk 0:02:40]}  O-O {[%clk 0:02:55]} 12. Bb2 {[%clk 0:02:39]}  Qc7 {[%clk 0:02:53]} 13. Bd3 {[%clk 0:02:38]}  e5 {[%clk 0:02:48]} 14. e4 {[%clk 0:02:37]}  exd4 {[%clk 0:02:43]} 15. cxd4 {[%clk 0:02:37]}  Rfe8 {[%clk 0:02:43]} 16. Nd2 {[%clk 0:02:17]}  cxd4 {[%clk 0:02:38]} 17. Bxd4 {[%clk 0:02:16]}  Qd6 {[%clk 0:02:38]} 18. Bb2 {[%clk 0:02:07]}  Nc5 {[%clk 0:02:38]} 19. Bb5 {[%clk 0:02:05]}  Red8 {[%clk 0:02:29]} 20. Rfd1 {[%clk 0:01:43]}  Qe7 {[%clk 0:02:19]} 21. f3 {[%clk 0:01:37]}  h5 {[%clk 0:02:18]} 22. a5 {[%clk 0:01:09]}  a6 {[%clk 0:02:12]} 23. Bc4 {[%clk 0:01:07]}  b5 {[%clk 0:02:12]} 24. Ba2 {[%clk 0:01:07]}  Na4 {[%clk 0:02:11]} 25. Nf1 {[%clk 0:00:42]}  Nxb2 {[%clk 0:01:34]} 26. Qxb2 {[%clk 0:00:43]}  h4 {[%clk 0:01:29]} 27. h3 {[%clk 0:00:40]}  Nh5 {[%clk 0:01:27]} 28. Ne3 {[%clk 0:00:37]}  Nf4 {[%clk 0:01:22]} 29. Nf5 {[%clk 0:00:30]}  Qg5 {[%clk 0:01:22]} 30. Kh1 {[%clk 0:00:28]}  Nh5 {[%clk 0:01:08]} 31. Qb3 {[%clk 0:00:18]}  Qf6 {[%clk 0:00:57]} 32. Qe3 {[%clk 0:00:09]}  Ng3+ {[%clk 0:00:53]} 33. Nxg3 {[%clk 0:00:09]}  hxg3 {[%clk 0:00:54]} 34. Re1 {[%clk 0:00:06]}  Qe5 {[%clk 0:00:41]} 35. f4 {[%clk 0:00:05]}  Qd4 {[%clk 0:00:37]} 36. Qxg3 {[%clk 0:00:05]}  Bxe4 {[%clk 0:00:36]} 37. f5 {[%clk 0:00:04]}  Bxf5 {[%clk 0:00:32]} 38. Rf1 {[%clk 0:00:05]}  Ra7 {[%clk 0:00:25]} 39. Kh2 {[%clk 0:00:04]}  Be6 {[%clk 0:00:11]} 40. Bxe6 {[%clk 0:00:04]}  fxe6 {[%clk 0:00:12]} 41. Rad1 {[%clk 0:00:04]}  Qxd1 {[%clk 0:00:01]} 42. Rxd1 {[%clk 0:00:05]}  Rxd1 {[%clk 0:00:01]} 43. Qb8+ {[%clk 0:00:05]}  Kh7 {[%clk 0:00:02]} 44. Qxa7 {[%clk 0:00:05]}  b4 {[%clk 0:00:02]} 45. Qxa6 {[%clk 0:00:05]}  b3 {[%clk 0:00:03]} 46. Qb6 {[%clk 0:00:05]}  Ra1 {[%clk 0:00:02]} 47. Qxb3 {[%clk 0:00:04]}  Rxa5 {[%clk 0:00:02]} 48. Qxe6 {[%clk 0:00:04]} 1-0


[Site "https://www.chess.com"]

[Event "Titled Tuesday Blitz March 08 Late 2022"]
[White "Janaszak, Dawid"]
[Black "Karttunen, Mika"]
[WhiteFideId "1119206"]
[BlackFideId "502081"]
[WhiteElo "2199"]
[BlackElo "2343"]
[Result "1-0"]
[Round "07"]
[TimeControl "180+1"]
[Date "2022.03.09"]
[WhiteClock "0:00:44"]
[BlackClock "0:00:04"]

1. e4 {[%clk 0:02:51]}  c5 {[%clk 0:02:57]} 2. Nc3 {[%clk 0:02:50]}  g6 {[%clk 0:02:54]} 3. h4 {[%clk 0:02:48]}  h5 {[%clk 0:02:41]} 4. Bc4 {[%clk 0:02:48]}  e6 {[%clk 0:02:40]} 5. Nge2 {[%clk 0:02:41]}  a6 {[%clk 0:02:38]} 6. a4 {[%clk 0:02:39]}  Nc6 {[%clk 0:02:37]} 7. d4 {[%clk 0:02:38]}  cxd4 {[%clk 0:02:36]} 8. Nxd4 {[%clk 0:02:37]}  Bg7 {[%clk 0:02:36]} 9. Be3 {[%clk 0:02:35]}  Ne5 {[%clk 0:02:35]} 10. Be2 {[%clk 0:02:32]}  Qc7 {[%clk 0:02:28]} 11. a5 {[%clk 0:02:19]}  Nc4 {[%clk 0:02:22]} 12. Bxc4 {[%clk 0:02:14]}  Qxc4 {[%clk 0:02:21]} 13. Ra4 {[%clk 0:02:12]}  Qc7 {[%clk 0:02:18]} 14. O-O {[%clk 0:02:09]}  Ne7 {[%clk 0:02:18]} 15. Nf3 {[%clk 0:01:53]}  d6 {[%clk 0:02:04]} 16. Bd4 {[%clk 0:01:47]}  e5 {[%clk 0:02:00]} 17. Bb6 {[%clk 0:01:46]}  Qc6 {[%clk 0:01:59]} 18. Qd3 {[%clk 0:01:36]}  Be6 {[%clk 0:01:55]} 19. Rd1 {[%clk 0:01:30]}  Nc8 {[%clk 0:01:55]} 20. Ng5 {[%clk 0:01:16]}  Nxb6 {[%clk 0:01:50]} 21. axb6 {[%clk 0:01:16]}  Bg4 {[%clk 0:01:27]} 22. Rc4 {[%clk 0:00:58]}  Qxb6 {[%clk 0:00:26]} 23. Nd5 {[%clk 0:00:58]}  Qd8 {[%clk 0:00:19]} 24. f3 {[%clk 0:00:53]}  Be6 {[%clk 0:00:16]} 25. Nc7+ {[%clk 0:00:52]}  Ke7 {[%clk 0:00:16]} 26. Ngxe6 {[%clk 0:00:50]}  fxe6 {[%clk 0:00:14]} 27. Nxa8 {[%clk 0:00:50]}  Qxa8 {[%clk 0:00:14]} 28. Rc7+ {[%clk 0:00:48]}  Kf6 {[%clk 0:00:14]} 29. Qxd6 {[%clk 0:00:48]}  Re8 {[%clk 0:00:13]} 30. Qd7 {[%clk 0:00:47]}  Qa7+ {[%clk 0:00:04]} 31. Kh1 {[%clk 0:00:44]} 1-0


[Site "https://www.chess.com"]

[Event "Titled Tuesday Blitz March 08 Late 2022"]
[White "Koutlas, Nikolaos"]
[Black "Gadimbayli, Abdulla"]
[WhiteFideId "25827138"]
[BlackFideId "13404938"]
[WhiteElo "1610"]
[BlackElo "2311"]
[Result "1-0"]
[Round "07"]
[TimeControl "180+1"]
[Date "2022.03.08"]
[WhiteClock "0:00:07"]
[BlackClock "0:00:06"]

1. e4 {[%clk 0:03:00]}  c5 {[%clk 0:03:00]} 2. Nf3 {[%clk 0:02:59]}  d6 {[%clk 0:03:00]} 3. Nc3 {[%clk 0:03:00]}  Nf6 {[%clk 0:02:59]} 4. d4 {[%clk 0:03:00]}  cxd4 {[%clk 0:03:00]} 5. Nxd4 {[%clk 0:03:00]}  a6 {[%clk 0:03:01]} 6. Be3 {[%clk 0:02:55]}  e5 {[%clk 0:03:01]} 7. Nb3 {[%clk 0:02:55]}  Be7 {[%clk 0:03:00]} 8. h3 {[%clk 0:02:52]}  Be6 {[%clk 0:02:59]} 9. Qf3 {[%clk 0:02:49]}  Nc6 {[%clk 0:02:59]} 10. O-O-O {[%clk 0:02:49]}  Rc8 {[%clk 0:03:00]} 11. g4 {[%clk 0:02:49]}  h6 {[%clk 0:02:53]} 12. Rg1 {[%clk 0:02:47]}  Nd7 {[%clk 0:02:45]} 13. Kb1 {[%clk 0:02:42]}  Qc7 {[%clk 0:02:33]} 14. Nd5 {[%clk 0:02:17]}  Bxd5 {[%clk 0:02:30]} 15. exd5 {[%clk 0:02:18]}  Nd4 {[%clk 0:01:50]} 16. Bxd4 {[%clk 0:02:09]}  Qxc2+ {[%clk 0:01:49]} 17. Ka1 {[%clk 0:02:08]}  exd4 {[%clk 0:01:49]} 18. Bd3 {[%clk 0:02:04]}  Ne5 {[%clk 0:01:48]} 19. Bxc2 {[%clk 0:01:01]}  Nxf3 {[%clk 0:01:47]} 20. Rg3 {[%clk 0:00:38]}  Rxc2 {[%clk 0:01:36]} 21. Rxf3 {[%clk 0:00:36]}  Bf6 {[%clk 0:01:37]} 22. Kb1 {[%clk 0:00:35]}  d3 {[%clk 0:01:37]} 23. Rd2 {[%clk 0:00:32]}  Rc7 {[%clk 0:01:15]} 24. Rfxd3 {[%clk 0:00:28]}  Kd7 {[%clk 0:01:14]} 25. Rc2 {[%clk 0:00:27]}  Re8 {[%clk 0:01:00]} 26. Rxc7+ {[%clk 0:00:25]}  Kxc7 {[%clk 0:01:01]} 27. Re3 {[%clk 0:00:25]}  Rc8 {[%clk 0:00:42]} 28. Nd2 {[%clk 0:00:24]}  Bg5 {[%clk 0:00:40]} 29. Rc3+ {[%clk 0:00:22]}  Kd7 {[%clk 0:00:38]} 30. Rxc8 {[%clk 0:00:22]}  Kxc8 {[%clk 0:00:39]} 31. Ne4 {[%clk 0:00:21]}  Bf4 {[%clk 0:00:39]} 32. Kc2 {[%clk 0:00:21]}  Kd7 {[%clk 0:00:38]} 33. Kd3 {[%clk 0:00:22]}  Ke7 {[%clk 0:00:37]} 34. a4 {[%clk 0:00:21]}  g6 {[%clk 0:00:33]} 35. Kc4 {[%clk 0:00:19]}  f5 {[%clk 0:00:31]} 36. gxf5 {[%clk 0:00:19]}  gxf5 {[%clk 0:00:32]} 37. Nc3 {[%clk 0:00:19]}  Be5 {[%clk 0:00:33]} 38. b4 {[%clk 0:00:17]}  Bxc3 {[%clk 0:00:21]} 39. Kxc3 {[%clk 0:00:16]}  Kf6 {[%clk 0:00:21]} 40. Kd4 {[%clk 0:00:15]}  Kg5 {[%clk 0:00:22]} 41. Ke3 {[%clk 0:00:15]}  Kh4 {[%clk 0:00:20]} 42. Kf4 {[%clk 0:00:16]}  Kxh3 {[%clk 0:00:21]} 43. Kxf5 {[%clk 0:00:16]}  Kg2 {[%clk 0:00:20]} 44. f4 {[%clk 0:00:16]}  Kg3 {[%clk 0:00:20]} 45. Ke6 {[%clk 0:00:11]}  Kxf4 {[%clk 0:00:18]} 46. Kxd6 {[%clk 0:00:11]}  h5 {[%clk 0:00:17]} 47. Kc7 {[%clk 0:00:11]}  h4 {[%clk 0:00:18]} 48. d6 {[%clk 0:00:12]}  h3 {[%clk 0:00:19]} 49. d7 {[%clk 0:00:12]}  h2 {[%clk 0:00:20]} 50. d8=Q {[%clk 0:00:13]}  h1=Q {[%clk 0:00:21]} 51. Qd6+ {[%clk 0:00:11]}  Kf5 {[%clk 0:00:21]} 52. Qc5+ {[%clk 0:00:10]}  Kf4 {[%clk 0:00:20]} 53. Qd4+ {[%clk 0:00:09]}  Kf5 {[%clk 0:00:19]} 54. Qc5+ {[%clk 0:00:09]}  Kf4 {[%clk 0:00:19]} 55. Qb6 {[%clk 0:00:09]}  Qa1 {[%clk 0:00:11]} 56. a5 {[%clk 0:00:08]}  Qg7+ {[%clk 0:00:11]} 57. Kb8 {[%clk 0:00:07]}  Ke5 {[%clk 0:00:06]} 58. Qc7+ {[%clk 0:00:07]} 1-0


[Site "https://www.chess.com"]